[Event "Titled Tuesday Blitz July 25 Early 2023"]
[White "BenchGM"]
[Black "Lohani, Sujana"]
[BlackFideId "12311987"]
[WhiteElo "2301"]
[BlackElo "1928"]
[Result "1-0"]
[Round "5"]
[TimeControl "180+2"]
[Date "2023.07.25"]
[WhiteClock "0:00:57"]
[BlackClock "0:00:00"]
[Board "229"]

1. Nf3 {[%clk 0:02:43]}  c5 {[%clk 0:01:30]} 2. b3 {[%clk 0:02:33]}  Nc6 {[%clk 0:01:31]} 3. Bb2 {[%clk 0:02:33]}  Nf6 {[%clk 0:01:24]} 4. g3 {[%clk 0:02:24]}  d5 {[%clk 0:01:25]} 5. Bg2 {[%clk 0:02:23]}  d4 {[%clk 0:01:20]} 6. O-O {[%clk 0:02:22]}  e5 {[%clk 0:01:19]} 7. d3 {[%clk 0:02:18]}  Bd6 {[%clk 0:01:17]} 8. c3 {[%clk 0:02:17]}  O-O {[%clk 0:01:12]} 9. cxd4 {[%clk 0:02:14]}  exd4 {[%clk 0:01:12]} 10. Nbd2 {[%clk 0:02:14]}  Re8 {[%clk 0:01:10]} 11. Rc1 {[%clk 0:02:10]}  Rb8 {[%clk 0:00:55]} 12. Ng5 {[%clk 0:01:50]}  h6 {[%clk 0:00:39]} 13. Nge4 {[%clk 0:01:49]}  Nxe4 {[%clk 0:00:34]} 14. Nxe4 {[%clk 0:01:49]}  b6 {[%clk 0:00:30]} 15. Nxc5 {[%clk 0:01:39]}  bxc5 {[%clk 0:00:15]} 16. Bxc6 {[%clk 0:01:38]}  Re6 {[%clk 0:00:14]} 17. Bg2 {[%clk 0:01:34]}  Qe7 {[%clk 0:00:14]} 18. Re1 {[%clk 0:01:33]}  Bb7 {[%clk 0:00:13]} 19. Bxb7 {[%clk 0:01:21]}  Rxb7 {[%clk 0:00:12]} 20. Qd2 {[%clk 0:01:18]}  Qf6 {[%clk 0:00:09]} 21. e3 {[%clk 0:01:15]}  Rbe7 {[%clk 0:00:08]} 22. exd4 {[%clk 0:01:11]}  cxd4 {[%clk 0:00:06]} 23. Rxe6 {[%clk 0:01:10]}  Rxe6 {[%clk 0:00:05]} 24. Re1 {[%clk 0:01:07]}  Qe7 {[%clk 0:00:04]} 25. Rxe6 {[%clk 0:01:06]}  Qxe6 {[%clk 0:00:03]} 26. Bxd4 {[%clk 0:01:07]}  Qe7 {[%clk 0:00:02]} 27. Be3 {[%clk 0:01:05]}  Bb4 {[%clk 0:00:02]} 28. Qc2 {[%clk 0:01:05]}  Kh7 {[%clk 0:00:02]} 29. d4+ {[%clk 0:01:05]}  g6 {[%clk 0:00:02]} 30. d5 {[%clk 0:01:05]}  Qf6 {[%clk 0:00:02]} 31. Qc6 {[%clk 0:00:59]}  Qa1+ {[%clk 0:00:02]} 32. Kg2 {[%clk 0:01:00]}  Qe5 {[%clk 0:00:00]} 33. Qc4 {[%clk 0:00:57]} 1-0


[Site "https://www.chess.com"]

[Event "Titled Tuesday Blitz July 25 Early 2023"]
[White "Kramnik, Vladimir"]
[Black "Madaminov, Mukhiddin"]
[WhiteFideId "4101588"]
[BlackFideId "14210703"]
[WhiteElo "2991"]
[BlackElo "2929"]
[Result "1-0"]
[Round "6"]
[TimeControl "180+2"]
[Date "2023.07.25"]
[WhiteClock "0:01:21"]
[BlackClock "0:01:46"]
[Board "6"]

1. e4 {[%clk 0:03:00]}  e5 {[%clk 0:02:59]} 2. Nf3 {[%clk 0:02:59]}  Nc6 {[%clk 0:03:00]} 3. Bb5 {[%clk 0:02:59]}  a6 {[%clk 0:03:01]} 4. Ba4 {[%clk 0:02:59]}  Nf6 {[%clk 0:03:01]} 5. d3 {[%clk 0:02:59]}  d6 {[%clk 0:03:00]} 6. c3 {[%clk 0:02:58]}  g6 {[%clk 0:03:00]} 7. Bg5 {[%clk 0:02:56]}  Bg7 {[%clk 0:03:00]} 8. h3 {[%clk 0:02:55]}  h6 {[%clk 0:03:00]} 9. Be3 {[%clk 0:02:55]}  O-O {[%clk 0:03:00]} 10. Nbd2 {[%clk 0:02:55]}  b5 {[%clk 0:02:57]} 11. Bc2 {[%clk 0:02:52]}  d5 {[%clk 0:02:53]} 12. Nb3 {[%clk 0:02:42]}  Re8 {[%clk 0:02:49]} 13. O-O {[%clk 0:02:41]}  Kh7 {[%clk 0:02:49]} 14. Re1 {[%clk 0:02:39]}  a5 {[%clk 0:02:46]} 15. a4 {[%clk 0:02:37]}  b4 {[%clk 0:02:44]} 16. Bd2 {[%clk 0:02:22]}  Qd6 {[%clk 0:02:34]} 17. exd5 {[%clk 0:02:16]}  Nxd5 {[%clk 0:02:32]} 18. d4 {[%clk 0:02:14]}  Ba6 {[%clk 0:02:26]} 19. Nc5 {[%clk 0:02:02]}  bxc3 {[%clk 0:02:06]} 20. bxc3 {[%clk 0:01:59]}  Bc4 {[%clk 0:02:06]} 21. Ne4 {[%clk 0:01:32]}  Qd7 {[%clk 0:02:05]} 22. h4 {[%clk 0:01:22]}  exd4 {[%clk 0:01:55]} 23. cxd4 {[%clk 0:01:22]}  Qg4 {[%clk 0:01:46]} 24. Nfg5+ {[%clk 0:01:21]} 1-0


[Site "https://www.chess.com"]

[Event "Titled Tuesday Blitz July 25 Early 2023"]
[White "Martinez Alcantara, Jose Eduardo"]
[Black "Grandelius, Nils"]
[WhiteFideId "3805662"]
[BlackFideId "1710400"]
[WhiteElo "2988"]
[BlackElo "2879"]
[Result "1-0"]
[Round "6"]
[TimeControl "180+2"]
[Date "2023.07.25"]
[WhiteClock "0:01:21"]
[BlackClock "0:00:17"]
[Board "7"]

1. e4 {[%clk 0:02:58]}  c5 {[%clk 0:03:00]} 2. Nf3 {[%clk 0:02:58]}  e6 {[%clk 0:03:01]} 3. c3 {[%clk 0:02:59]}  d5 {[%clk 0:02:57]} 4. e5 {[%clk 0:02:59]}  d4 {[%clk 0:02:57]} 5. g3 {[%clk 0:03:00]}  Nc6 {[%clk 0:02:39]} 6. Bg2 {[%clk 0:03:00]}  Nge7 {[%clk 0:02:22]} 7. O-O {[%clk 0:03:00]}  Ng6 {[%clk 0:02:21]} 8. Re1 {[%clk 0:02:57]}  Qc7 {[%clk 0:02:11]} 9. cxd4 {[%clk 0:02:56]}  cxd4 {[%clk 0:02:08]} 10. d3 {[%clk 0:02:57]}  Ncxe5 {[%clk 0:01:53]} 11. Nxe5 {[%clk 0:02:55]}  Nxe5 {[%clk 0:01:53]} 12. Bf4 {[%clk 0:02:52]}  Bd6 {[%clk 0:01:54]} 13. Nd2 {[%clk 0:02:53]}  Ng6 {[%clk 0:01:44]} 14. Rc1 {[%clk 0:02:49]}  Qe7 {[%clk 0:01:43]} 15. Bxd6 {[%clk 0:02:23]}  Qxd6 {[%clk 0:01:44]} 16. Qa4+ {[%clk 0:02:23]}  Bd7 {[%clk 0:01:36]} 17. Ne4 {[%clk 0:02:19]}  Bxa4 {[%clk 0:01:21]} 18. Nxd6+ {[%clk 0:02:17]}  Ke7 {[%clk 0:01:21]} 19. Nxb7 {[%clk 0:02:13]}  Rac8 {[%clk 0:01:20]} 20. Nc5 {[%clk 0:02:07]}  Bd7 {[%clk 0:01:06]} 21. f4 {[%clk 0:01:52]}  Rhd8 {[%clk 0:00:59]} 22. b4 {[%clk 0:01:49]}  Nf8 {[%clk 0:00:42]} 23. a4 {[%clk 0:01:42]}  g6 {[%clk 0:00:32]} 24. b5 {[%clk 0:01:40]}  Be8 {[%clk 0:00:31]} 25. Nb7 {[%clk 0:01:29]}  Rxc1 {[%clk 0:00:27]} 26. Rxc1 {[%clk 0:01:30]}  Rd7 {[%clk 0:00:26]} 27. Na5 {[%clk 0:01:31]}  Rd8 {[%clk 0:00:17]} 28. Rc7+ {[%clk 0:01:26]}  Rd7 {[%clk 0:00:17]} 29. Nc6+ {[%clk 0:01:22]}  Kd6 {[%clk 0:00:17]} 30. Rc8 {[%clk 0:01:21]} 1-0


[Site "https://www.chess.com"]

[Event "Titled Tuesday Blitz July 25 Early 2023"]
[White "Sarana, Alexey"]
[Black "Kantor, Gergely"]
[WhiteFideId "24133795"]
[BlackFideId "751499"]
[WhiteElo "3052"]
[BlackElo "2794"]
[Result "1-0"]
[Round "6"]
[TimeControl "180+2"]
[Date "2023.07.25"]
[WhiteClock "0:00:08"]
[BlackClock "0:00:00"]
[Board "10"]

1. d4 {[%clk 0:03:00]}  Nf6 {[%clk 0:02:59]} 2. c4 {[%clk 0:03:00]}  a6 {[%clk 0:02:59]} 3. Nc3 {[%clk 0:03:00]}  b5 {[%clk 0:03:00]} 4. Nf3 {[%clk 0:02:59]}  b4 {[%clk 0:02:42]} 5. Nd5 {[%clk 0:02:59]}  e6 {[%clk 0:02:42]} 6. Nxf6+ {[%clk 0:02:59]}  Qxf6 {[%clk 0:02:42]} 7. e4 {[%clk 0:02:59]}  Bb7 {[%clk 0:02:43]} 8. Bd3 {[%clk 0:03:00]}  h6 {[%clk 0:02:27]} 9. O-O {[%clk 0:02:57]}  Nc6 {[%clk 0:02:21]} 10. e5 {[%clk 0:02:51]}  Qd8 {[%clk 0:02:21]} 11. d5 {[%clk 0:02:49]}  Ne7 {[%clk 0:02:21]} 12. Be4 {[%clk 0:02:49]}  exd5 {[%clk 0:02:19]} 13. cxd5 {[%clk 0:02:49]}  d6 {[%clk 0:02:15]} 14. e6 {[%clk 0:02:09]}  fxe6 {[%clk 0:02:11]} 15. Nd4 {[%clk 0:01:43]}  Bxd5 {[%clk 0:02:00]} 16. Bxd5 {[%clk 0:01:20]}  exd5 {[%clk 0:01:59]} 17. Re1 {[%clk 0:01:20]}  Qd7 {[%clk 0:01:49]} 18. Qh5+ {[%clk 0:01:10]}  Kd8 {[%clk 0:01:45]} 19. Bf4 {[%clk 0:01:10]}  Kc8 {[%clk 0:01:36]} 20. Rac1 {[%clk 0:00:58]}  c5 {[%clk 0:01:14]} 21. Ne6 {[%clk 0:00:48]}  g6 {[%clk 0:00:41]} 22. Qf3 {[%clk 0:00:48]}  Ra7 {[%clk 0:00:16]} 23. Nxc5 {[%clk 0:00:25]}  dxc5 {[%clk 0:00:15]} 24. Rxc5+ {[%clk 0:00:26]}  Kd8 {[%clk 0:00:15]} 25. Be5 {[%clk 0:00:25]}  Rg8 {[%clk 0:00:14]} 26. Bf6 {[%clk 0:00:26]}  Ke8 {[%clk 0:00:09]} 27. Rxd5 {[%clk 0:00:21]}  Qc8 {[%clk 0:00:05]} 28. Rde5 {[%clk 0:00:18]}  Rd7 {[%clk 0:00:05]} 29. h4 {[%clk 0:00:18]}  Qd8 {[%clk 0:00:05]} 30. b3 {[%clk 0:00:11]}  Rg7 {[%clk 0:00:05]} 31. Bxg7 {[%clk 0:00:08]}  Bxg7 {[%clk 0:00:05]} 32. Re6 {[%clk 0:00:09]}  Bf8 {[%clk 0:00:02]} 33. Qf6 {[%clk 0:00:08]}  Rd1 {[%clk 0:00:00]} 34. Qxg6+ {[%clk 0:00:08]} 1-0


[Site "https://www.chess.com"]

[Event "Titled Tuesday Blitz July 25 Early 2023"]
[White "Duda, Jan-Krzysztof"]
[Black "Lobanov, Sergei"]
[WhiteFideId "1170546"]
[BlackFideId "24183750"]
[WhiteElo "2998"]
[BlackElo "2786"]
[Result "1-0"]
[Round "6"]
[TimeControl "180+2"]
[Date "2023.07.25"]
[WhiteClock "0:00:43"]
[BlackClock "0:00:05"]
[Board "13"]

1. e4 {[%clk 0:03:00]}  e5 {[%clk 0:03:00]} 2. Nf3 {[%clk 0:03:00]}  Nc6 {[%clk 0:03:00]} 3. Nc3 {[%clk 0:03:00]}  Nf6 {[%clk 0:03:00]} 4. Bb5 {[%clk 0:03:00]}  Bc5 {[%clk 0:02:57]} 5. Bxc6 {[%clk 0:02:58]}  dxc6 {[%clk 0:02:55]} 6. h3 {[%clk 0:02:56]}  Be6 {[%clk 0:02:51]} 7. d3 {[%clk 0:02:56]}  Nd7 {[%clk 0:02:40]} 8. Ng5 {[%clk 0:02:50]}  Qe7 {[%clk 0:02:40]} 9. Nxe6 {[%clk 0:02:46]}  Qxe6 {[%clk 0:02:41]} 10. Qg4 {[%clk 0:02:46]}  Qg6 {[%clk 0:02:34]} 11. Ne2 {[%clk 0:02:43]}  Nf8 {[%clk 0:02:26]} 12. Ng3 {[%clk 0:02:40]}  Ne6 {[%clk 0:02:22]} 13. Nf5 {[%clk 0:02:23]}  O-O-O {[%clk 0:02:02]} 14. Be3 {[%clk 0:02:20]}  Bd6 {[%clk 0:02:02]} 15. a4 {[%clk 0:02:06]}  Kb8 {[%clk 0:01:52]} 16. O-O {[%clk 0:01:54]}  Qf6 {[%clk 0:01:42]} 17. Rab1 {[%clk 0:01:43]}  h5 {[%clk 0:01:40]} 18. Qd1 {[%clk 0:01:37]}  Bf8 {[%clk 0:01:12]} 19. Qe1 {[%clk 0:01:26]}  g6 {[%clk 0:01:09]} 20. Ng3 {[%clk 0:01:27]}  Bc5 {[%clk 0:00:46]} 21. b4 {[%clk 0:01:19]}  Bxe3 {[%clk 0:00:42]} 22. fxe3 {[%clk 0:01:20]}  Qe7 {[%clk 0:00:40]} 23. Qc3 {[%clk 0:01:18]}  h4 {[%clk 0:00:35]} 24. Ne2 {[%clk 0:01:09]}  Rh5 {[%clk 0:00:32]} 25. Rf3 {[%clk 0:01:04]}  Ng5 {[%clk 0:00:25]} 26. Rf2 {[%clk 0:01:04]}  Rhh8 {[%clk 0:00:18]} 27. b5 {[%clk 0:01:00]}  c5 {[%clk 0:00:17]} 28. Rbf1 {[%clk 0:01:00]}  Rd7 {[%clk 0:00:15]} 29. Nc1 {[%clk 0:01:00]}  Rf8 {[%clk 0:00:12]} 30. Nb3 {[%clk 0:00:59]}  b6 {[%clk 0:00:12]} 31. Nd2 {[%clk 0:00:52]}  f6 {[%clk 0:00:12]} 32. Nc4 {[%clk 0:00:51]}  Rdd8 {[%clk 0:00:12]} 33. a5 {[%clk 0:00:50]}  Qe6 {[%clk 0:00:05]} 34. Nxe5 {[%clk 0:00:43]} 1-0


[Site "https://www.chess.com"]

[Event "Titled Tuesday Blitz July 25 Early 2023"]
[White "Priasmoro, Novendra"]
[Black "Kevlishvili, Robby"]
[WhiteFideId "7105029"]
[BlackFideId "1040634"]
[WhiteElo "2776"]
[BlackElo "2997"]
[Result "0-1"]
[Round "6"]
[TimeControl "180+2"]
[Date "2023.07.25"]
[WhiteClock "0:00:01"]
[BlackClock "0:00:42"]
[Board "14"]

1. e4 {[%clk 0:03:00]}  c5 {[%clk 0:02:58]} 2. Nf3 {[%clk 0:03:00]}  d6 {[%clk 0:02:58]} 3. d4 {[%clk 0:03:00]}  cxd4 {[%clk 0:02:58]} 4. Nxd4 {[%clk 0:03:01]}  Nf6 {[%clk 0:02:59]} 5. Nc3 {[%clk 0:03:02]}  Bd7 {[%clk 0:02:59]} 6. Bg5 {[%clk 0:03:00]}  Nc6 {[%clk 0:03:00]} 7. Qd2 {[%clk 0:02:59]}  Rc8 {[%clk 0:02:59]} 8. O-O-O {[%clk 0:02:57]}  Nxd4 {[%clk 0:03:00]} 9. Qxd4 {[%clk 0:02:58]}  Qa5 {[%clk 0:03:00]} 10. Bxf6 {[%clk 0:02:58]}  gxf6 {[%clk 0:03:01]} 11. f4 {[%clk 0:02:56]}  Qc5 {[%clk 0:02:58]} 12. Kb1 {[%clk 0:02:55]}  Qxd4 {[%clk 0:02:53]} 13. Rxd4 {[%clk 0:02:55]}  f5 {[%clk 0:02:54]} 14. exf5 {[%clk 0:02:46]}  Bg7 {[%clk 0:02:52]} 15. Rb4 {[%clk 0:02:25]}  Bxc3 {[%clk 0:02:50]} 16. bxc3 {[%clk 0:02:25]}  b6 {[%clk 0:02:43]} 17. f6 {[%clk 0:02:17]}  Rxc3 {[%clk 0:02:39]} 18. fxe7 {[%clk 0:02:15]}  Bf5 {[%clk 0:02:38]} 19. Rc4 {[%clk 0:02:12]}  Bxc2+ {[%clk 0:02:29]} 20. Kb2 {[%clk 0:02:12]}  Rxc4 {[%clk 0:02:29]} 21. Bxc4 {[%clk 0:02:13]}  Be4 {[%clk 0:02:30]} 22. Re1 {[%clk 0:02:07]}  d5 {[%clk 0:02:18]} 23. Bb3 {[%clk 0:02:07]}  f5 {[%clk 0:02:17]} 24. g3 {[%clk 0:01:45]}  Kf7 {[%clk 0:01:52]} 25. Kc3 {[%clk 0:01:30]}  Re8 {[%clk 0:01:21]} 26. Kd4 {[%clk 0:01:24]}  Kxe7 {[%clk 0:01:22]} 27. g4 {[%clk 0:01:16]}  Rc8 {[%clk 0:01:13]} 28. Bxd5 {[%clk 0:00:25]}  Rd8 {[%clk 0:01:13]} 29. gxf5 {[%clk 0:00:26]}  Rxd5+ {[%clk 0:01:14]} 30. Kxe4 {[%clk 0:00:26]}  Ra5 {[%clk 0:01:14]} 31. Re2 {[%clk 0:00:22]}  Kf6 {[%clk 0:01:11]} 32. Rd2 {[%clk 0:00:21]}  Ra4+ {[%clk 0:01:08]} 33. Kf3 {[%clk 0:00:21]}  Kxf5 {[%clk 0:01:09]} 34. Rd5+ {[%clk 0:00:22]}  Ke6 {[%clk 0:01:08]} 35. Rd2 {[%clk 0:00:23]}  h5 {[%clk 0:01:08]} 36. Re2+ {[%clk 0:00:18]}  Kf5 {[%clk 0:01:04]} 37. Re5+ {[%clk 0:00:18]}  Kf6 {[%clk 0:01:05]} 38. Re2 {[%clk 0:00:19]}  Ra3+ {[%clk 0:01:05]} 39. Ke4 {[%clk 0:00:19]}  h4 {[%clk 0:01:06]} 40. Rc2 {[%clk 0:00:18]}  Ra4+ {[%clk 0:01:04]} 41. Ke3 {[%clk 0:00:17]}  Kf5 {[%clk 0:01:05]} 42. Rd2 {[%clk 0:00:11]}  Ra3+ {[%clk 0:01:00]} 43. Kd4 {[%clk 0:00:09]}  Kxf4 {[%clk 0:00:59]} 44. Rf2+ {[%clk 0:00:09]}  Kg4 {[%clk 0:00:59]} 45. Kc4 {[%clk 0:00:09]}  Rf3 {[%clk 0:00:53]} 46. Rg2+ {[%clk 0:00:07]}  Kh3 {[%clk 0:00:53]} 47. Re2 {[%clk 0:00:07]}  Rf1 {[%clk 0:00:51]} 48. Kb5 {[%clk 0:00:08]}  Rh1 {[%clk 0:00:51]} 49. a4 {[%clk 0:00:08]}  Rxh2 {[%clk 0:00:51]} 50. Re8 {[%clk 0:00:08]}  Rb2+ {[%clk 0:00:48]} 51. Ka6 {[%clk 0:00:05]}  Rb4 {[%clk 0:00:48]} 52. Re3+ {[%clk 0:00:06]}  Kg4 {[%clk 0:00:47]} 53. Ra3 {[%clk 0:00:07]}  h3 {[%clk 0:00:48]} 54. Kxa7 {[%clk 0:00:08]}  h2 {[%clk 0:00:48]} 55. Ra1 {[%clk 0:00:08]}  Rb2 {[%clk 0:00:44]} 56. Kb7 {[%clk 0:00:07]}  Kg3 {[%clk 0:00:43]} 57. Kc6 {[%clk 0:00:03]}  Kg2 {[%clk 0:00:43]} 58. a5 {[%clk 0:00:01]}  bxa5 {[%clk 0:00:42]} 0-1


[Site "https://www.chess.com"]

[Event "Titled Tuesday Blitz July 25 Early 2023"]
[White "Rozman, Levy"]
[Black "Matlakov, Maxim"]
[WhiteFideId "2039877"]
[BlackFideId "4168003"]
[WhiteElo "2762"]
[BlackElo "2986"]
[Result "1-0"]
[Round "6"]
[TimeControl "180+2"]
[Date "2023.07.25"]
[WhiteClock "0:00:02"]
[BlackClock "0:00:00"]
[Board "16"]

1. e4 {[%clk 0:03:00]}  c5 {[%clk 0:02:58]} 2. Nc3 {[%clk 0:03:00]}  e6 {[%clk 0:02:59]} 3. d4 {[%clk 0:03:01]}  cxd4 {[%clk 0:02:59]} 4. Qxd4 {[%clk 0:03:02]}  Nc6 {[%clk 0:02:58]} 5. Qd3 {[%clk 0:03:02]}  a6 {[%clk 0:02:58]} 6. Bf4 {[%clk 0:03:02]}  b5 {[%clk 0:02:58]} 7. O-O-O {[%clk 0:03:02]}  Nf6 {[%clk 0:02:46]} 8. e5 {[%clk 0:03:00]}  Nh5 {[%clk 0:02:43]} 9. Bg3 {[%clk 0:02:45]}  Qa5 {[%clk 0:02:17]} 10. Kb1 {[%clk 0:02:38]}  b4 {[%clk 0:02:14]} 11. Ne4 {[%clk 0:02:34]}  Nxg3 {[%clk 0:02:13]} 12. hxg3 {[%clk 0:02:14]}  Nxe5 {[%clk 0:02:10]} 13. Nd6+ {[%clk 0:02:08]}  Bxd6 {[%clk 0:02:07]} 14. Qxd6 {[%clk 0:02:08]}  Nc6 {[%clk 0:01:17]} 15. Nf3 {[%clk 0:01:58]}  Qd8 {[%clk 0:00:54]} 16. Bc4 {[%clk 0:01:32]}  Qe7 {[%clk 0:00:51]} 17. Qc7 {[%clk 0:01:13]}  O-O {[%clk 0:00:46]} 18. Bd3 {[%clk 0:00:25]}  h6 {[%clk 0:00:43]} 19. g4 {[%clk 0:00:21]}  f6 {[%clk 0:00:28]} 20. Nh4 {[%clk 0:00:18]}  Ne5 {[%clk 0:00:25]} 21. Be4 {[%clk 0:00:16]}  Bb7 {[%clk 0:00:06]} 22. Bxb7 {[%clk 0:00:15]}  Rab8 {[%clk 0:00:06]} 23. Be4 {[%clk 0:00:06]}  Rfc8 {[%clk 0:00:05]} 24. Qd6 {[%clk 0:00:07]}  Qxd6 {[%clk 0:00:04]} 25. Rxd6 {[%clk 0:00:07]}  Nxg4 {[%clk 0:00:05]} 26. Rxd7 {[%clk 0:00:07]}  Nxf2 {[%clk 0:00:05]} 27. Re1 {[%clk 0:00:06]}  Rc4 {[%clk 0:00:05]} 28. Bg6 {[%clk 0:00:02]}  Rxh4 {[%clk 0:00:04]} 29. a3 {[%clk 0:00:01]}  bxa3 {[%clk 0:00:03]} 30. b3 {[%clk 0:00:02]}  e5 {[%clk 0:00:00]} 31. Re2 {[%clk 0:00:02]} 1-0


[Site "https://www.chess.com"]

[Event "Titled Tuesday Blitz July 25 Early 2023"]
[White "Dvirnyy, Danyyil"]
[Black "Movahed, Sina"]
[WhiteFideId "817570"]
[BlackFideId "42520835"]
[WhiteElo "2757"]
[BlackElo "2974"]
[Result "1-0"]
[Round "6"]
[TimeControl "180+2"]
[Date "2023.07.25"]
[WhiteClock "0:00:16"]
[BlackClock "0:00:02"]
[Board "17"]

1. Nf3 {[%clk 0:03:00]}  Nf6 {[%clk 0:03:00]} 2. g3 {[%clk 0:03:01]}  g6 {[%clk 0:03:00]} 3. Bg2 {[%clk 0:03:01]}  Bg7 {[%clk 0:03:01]} 4. O-O {[%clk 0:03:02]}  c5 {[%clk 0:03:00]} 5. c4 {[%clk 0:03:02]}  Nc6 {[%clk 0:03:00]} 6. d4 {[%clk 0:03:01]}  cxd4 {[%clk 0:03:01]} 7. Nxd4 {[%clk 0:03:02]}  h5 {[%clk 0:03:02]} 8. Nc3 {[%clk 0:02:47]}  h4 {[%clk 0:03:01]} 9. Bg5 {[%clk 0:02:45]}  hxg3 {[%clk 0:02:54]} 10. hxg3 {[%clk 0:02:45]}  Qa5 {[%clk 0:02:55]} 11. Nf3 {[%clk 0:02:26]}  d6 {[%clk 0:02:42]} 12. Rc1 {[%clk 0:02:17]}  Bg4 {[%clk 0:02:40]} 13. Nd5 {[%clk 0:02:14]}  Ne4 {[%clk 0:02:37]} 14. Be3 {[%clk 0:02:00]}  e6 {[%clk 0:02:09]} 15. b4 {[%clk 0:01:30]}  Qd8 {[%clk 0:01:57]} 16. Qa4 {[%clk 0:00:59]}  Kf8 {[%clk 0:01:50]} 17. b5 {[%clk 0:00:54]}  Ne7 {[%clk 0:01:33]} 18. Nxe7 {[%clk 0:00:38]}  Qxe7 {[%clk 0:01:31]} 19. c5 {[%clk 0:00:38]}  d5 {[%clk 0:01:06]} 20. c6 {[%clk 0:00:36]}  bxc6 {[%clk 0:01:06]} 21. bxc6 {[%clk 0:00:36]}  Kg8 {[%clk 0:01:04]} 22. c7 {[%clk 0:00:30]}  Kh7 {[%clk 0:01:00]} 23. Qxe4 {[%clk 0:00:23]}  dxe4 {[%clk 0:00:53]} 24. Ng5+ {[%clk 0:00:23]}  Qxg5 {[%clk 0:00:17]} 25. Bxg5 {[%clk 0:00:23]}  Bxe2 {[%clk 0:00:17]} 26. Bxe4 {[%clk 0:00:23]}  Rac8 {[%clk 0:00:12]} 27. Bb7 {[%clk 0:00:21]}  Bxf1 {[%clk 0:00:11]} 28. Kxf1 {[%clk 0:00:18]}  Be5 {[%clk 0:00:10]} 29. Bxc8 {[%clk 0:00:19]}  Rxc8 {[%clk 0:00:11]} 30. Bd8 {[%clk 0:00:19]}  Kg7 {[%clk 0:00:10]} 31. f4 {[%clk 0:00:19]}  Bd6 {[%clk 0:00:10]} 32. Rc6 {[%clk 0:00:19]}  Bb4 {[%clk 0:00:09]} 33. Ke2 {[%clk 0:00:18]}  Kf8 {[%clk 0:00:09]} 34. Kd3 {[%clk 0:00:19]}  Ke8 {[%clk 0:00:09]} 35. Kc4 {[%clk 0:00:19]}  Ba5 {[%clk 0:00:08]} 36. Kb5 {[%clk 0:00:17]}  Bb6 {[%clk 0:00:09]} 37. Rc3 {[%clk 0:00:16]}  Kd7 {[%clk 0:00:07]} 38. Rd3+ {[%clk 0:00:17]}  Ke8 {[%clk 0:00:08]} 39. Kc6 {[%clk 0:00:17]}  Rxd8 {[%clk 0:00:02]} 40. Rxd8+ {[%clk 0:00:16]} 1-0


[Site "https://www.chess.com"]

[Event "Titled Tuesday Blitz July 25 Early 2023"]
[White "Zubritskiy, Artyom"]
[Black "Indjic, Aleksandar"]
[WhiteFideId "4181247"]
[BlackFideId "911925"]
[WhiteElo "2755"]
[BlackElo "2964"]
[Result "1-0"]
[Round "6"]
[TimeControl "180+2"]
[Date "2023.07.25"]
[WhiteClock "0:00:04"]
[BlackClock "0:00:16"]
[Board "18"]

1. d4 {[%clk 0:03:00]}  Nf6 {[%clk 0:02:58]} 2. c4 {[%clk 0:03:01]}  c5 {[%clk 0:02:58]} 3. dxc5 {[%clk 0:02:57]}  e6 {[%clk 0:02:58]} 4. Nf3 {[%clk 0:02:57]}  Bxc5 {[%clk 0:02:58]} 5. e3 {[%clk 0:02:58]}  O-O {[%clk 0:02:58]} 6. a3 {[%clk 0:02:58]}  d5 {[%clk 0:02:57]} 7. Qc2 {[%clk 0:02:58]}  Qe7 {[%clk 0:02:56]} 8. Nc3 {[%clk 0:02:57]}  Rd8 {[%clk 0:02:53]} 9. Bd3 {[%clk 0:02:57]}  a6 {[%clk 0:02:52]} 10. O-O {[%clk 0:02:56]}  Ba7 {[%clk 0:02:52]} 11. b3 {[%clk 0:02:46]}  dxc4 {[%clk 0:02:49]} 12. Bxc4 {[%clk 0:02:44]}  b5 {[%clk 0:02:49]} 13. Bd3 {[%clk 0:02:41]}  Bb7 {[%clk 0:02:49]} 14. Bb2 {[%clk 0:02:24]}  Nbd7 {[%clk 0:02:49]} 15. Rfd1 {[%clk 0:02:13]}  Rac8 {[%clk 0:02:48]} 16. Rac1 {[%clk 0:02:09]}  h6 {[%clk 0:02:36]} 17. Qe2 {[%clk 0:01:59]}  Bc5 {[%clk 0:02:30]} 18. b4 {[%clk 0:01:55]}  Bd6 {[%clk 0:02:30]} 19. Bb1 {[%clk 0:01:35]}  Nb6 {[%clk 0:02:28]} 20. e4 {[%clk 0:01:26]}  Nc4 {[%clk 0:02:16]} 21. e5 {[%clk 0:01:16]}  Bxf3 {[%clk 0:02:15]} 22. exd6 {[%clk 0:00:52]}  Bxe2 {[%clk 0:02:15]} 23. dxe7 {[%clk 0:00:52]}  Rxd1+ {[%clk 0:02:10]} 24. Nxd1 {[%clk 0:00:52]}  Re8 {[%clk 0:01:49]} 25. Bxf6 {[%clk 0:00:42]}  gxf6 {[%clk 0:01:50]} 26. Nc3 {[%clk 0:00:43]}  Bh5 {[%clk 0:01:48]} 27. a4 {[%clk 0:00:42]}  Nd6 {[%clk 0:01:32]} 28. axb5 {[%clk 0:00:41]}  axb5 {[%clk 0:01:32]} 29. Bd3 {[%clk 0:00:34]}  Rxe7 {[%clk 0:01:32]} 30. Nxb5 {[%clk 0:00:34]}  Nxb5 {[%clk 0:01:31]} 31. Bxb5 {[%clk 0:00:35]}  Rb7 {[%clk 0:01:31]} 32. Rc5 {[%clk 0:00:35]}  f5 {[%clk 0:01:29]} 33. f3 {[%clk 0:00:33]}  Kg7 {[%clk 0:01:28]} 34. Kf2 {[%clk 0:00:33]}  Kf6 {[%clk 0:01:26]} 35. Ke3 {[%clk 0:00:26]}  Kg5 {[%clk 0:01:26]} 36. Kd4 {[%clk 0:00:22]}  f6 {[%clk 0:01:26]} 37. Kc3 {[%clk 0:00:20]}  Kf4 {[%clk 0:01:25]} 38. Bc6 {[%clk 0:00:17]}  Rb8 {[%clk 0:01:21]} 39. b5 {[%clk 0:00:17]}  e5 {[%clk 0:01:18]} 40. Kb4 {[%clk 0:00:06]}  Be8 {[%clk 0:01:15]} 41. Bxe8 {[%clk 0:00:06]}  Rxe8 {[%clk 0:01:16]} 42. b6 {[%clk 0:00:06]}  Rb8 {[%clk 0:01:15]} 43. Kb5 {[%clk 0:00:07]}  e4 {[%clk 0:01:16]} 44. fxe4 {[%clk 0:00:05]}  fxe4 {[%clk 0:01:17]} 45. Ka6 {[%clk 0:00:05]}  Ke3 {[%clk 0:01:16]} 46. b7 {[%clk 0:00:05]}  Kf2 {[%clk 0:01:12]} 47. Rc8 {[%clk 0:00:03]}  Rxb7 {[%clk 0:01:10]} 48. Kxb7 {[%clk 0:00:04]}  Kxg2 {[%clk 0:01:05]} 49. Re8 {[%clk 0:00:04]}  f5 {[%clk 0:01:02]} 50. Kc6 {[%clk 0:00:04]}  f4 {[%clk 0:01:02]} 51. Kd5 {[%clk 0:00:04]}  f3 {[%clk 0:01:02]} 52. Kxe4 {[%clk 0:00:04]}  f2 {[%clk 0:01:03]} 53. Rf8 {[%clk 0:00:04]}  f1=Q {[%clk 0:00:54]} 54. Rxf1 {[%clk 0:00:04]}  Kxf1 {[%clk 0:00:55]} 55. Kf5 {[%clk 0:00:04]}  Kg2 {[%clk 0:00:16]} 56. h4 {[%clk 0:00:04]} 1-0


[Site "https://www.chess.com"]